[Event "Early-Titled-Tuesday-Blitz-March-05-2024"]
[Site "Chess.com"]
[Date "2024.03.05"]
[Round "8"]
[White "David_George21"]
[Black "chessamical"]
[Result "0-1"]
[WhiteElo "2408"]
[BlackElo "2179"]
[TimeControl "180+1"]
[EndTime "9:30:21 PST"]
[Termination "chessamical won by checkmate"]

1. e4 {[%clk 0:03:00.9]} 1... e6 {[%clk 0:02:59.3]} 2. d4 {[%clk 0:03:00.2]}
2... d5 {[%clk 0:02:59.9]} 3. Nd2 {[%clk 0:02:59]} 3... c5 {[%clk 0:02:57.6]} 4.
exd5 {[%clk 0:02:57.8]} 4... cxd4 {[%clk 0:02:54.3]} 5. Bb5+ {[%clk 0:02:51.6]}
5... Bd7 {[%clk 0:02:50.4]} 6. dxe6 {[%clk 0:02:51.4]} 6... Bxb5 {[%clk
0:02:49.7]} 7. exf7+ {[%clk 0:02:38.9]} 7... Kd7 {[%clk 0:02:42.8]} 8. fxg8=Q
{[%clk 0:02:30.2]} 8... Qe7+ {[%clk 0:02:37.9]} 9. Ne2 {[%clk 0:02:29.2]} 9...
Rxg8 {[%clk 0:02:37]} 10. c4 {[%clk 0:02:25.5]} 10... dxc3 {[%clk 0:02:36.3]}
11. Ne4+ {[%clk 0:02:20]} 11... Kc8 {[%clk 0:02:31.9]} 12. N4xc3 {[%clk
0:02:19.1]} 12... Bc6 {[%clk 0:02:17]} 13. O-O {[%clk 0:02:11]} 13... Nd7 {[%clk
0:02:00.4]} 14. Bf4 {[%clk 0:01:57.4]} 14... g5 {[%clk 0:01:53.4]} 15. Bg3
{[%clk 0:01:56.9]} 15... h5 {[%clk 0:01:53.9]} 16. Nd5 {[%clk 0:01:56.5]} 16...
Qf7 {[%clk 0:01:33.6]} 17. Rc1 {[%clk 0:01:05.9]} 17... h4 {[%clk 0:01:30.2]}
18. Nd4 {[%clk 0:01:00.7]} 18... Qxd5 {[%clk 0:00:44.1]} 19. Nxc6 {[%clk
0:01:00.3]} 19... Qxd1 {[%clk 0:00:43.8]} 20. Ne5+ {[%clk 0:00:15.4]} 20... Qxc1
{[%clk 0:00:42]} 21. Rxc1+ {[%clk 0:00:15.4]} 21... Kd8 {[%clk 0:00:41.7]} 22.
Nxd7 {[%clk 0:00:13.8]} 22... Kxd7 {[%clk 0:00:36.4]} 23. Be5 {[%clk 0:00:12.2]}
23... Bd6 {[%clk 0:00:34.5]} 24. Rd1 {[%clk 0:00:11.9]} 24... Rg6 {[%clk
0:00:34.4]} 25. g3 {[%clk 0:00:10.5]} 25... h3 {[%clk 0:00:33.1]} 26. f4 {[%clk
0:00:10.4]} 26... gxf4 {[%clk 0:00:30]} 27. Bxf4 {[%clk 0:00:11.3]} 27... Rc8
{[%clk 0:00:24.1]} 28. Rd2 {[%clk 0:00:09.9]} 28... Rc4 {[%clk 0:00:19.7]} 29.
Kf2 {[%clk 0:00:08.6]} 29... Kc6 {[%clk 0:00:19.7]} 30. Be3 {[%clk 0:00:06.7]}
30... Rf6+ {[%clk 0:00:17.6]} 31. Ke2 {[%clk 0:00:07.1]} 31... Re6 {[%clk
0:00:16.1]} 32. b3 {[%clk 0:00:06.6]} 32... Rc3 {[%clk 0:00:15.5]} 33. Rd3
{[%clk 0:00:04.6]} 33... Rxd3 {[%clk 0:00:15]} 34. Kxd3 {[%clk 0:00:05.5]} 34...
Kd5 {[%clk 0:00:14.6]} 35. Bd2 {[%clk 0:00:05.2]} 35... Bxg3 {[%clk 0:00:14.5]}
36. hxg3 {[%clk 0:00:04.9]} 36... h2 {[%clk 0:00:14.3]} 37. Bf4 {[%clk
0:00:04.2]} 37... h1=Q {[%clk 0:00:15]} 38. Kc3 {[%clk 0:00:04.4]} 38... Qe4
{[%clk 0:00:15.7]} 39. Kb2 {[%clk 0:00:04.5]} 39... Rc6 {[%clk 0:00:16.5]} 40.
Ka3 {[%clk 0:00:05]} 40... Rc2 {[%clk 0:00:17.2]} 41. b4 {[%clk 0:00:04.3]}
41... b5 {[%clk 0:00:16.7]} 42. Kb3 {[%clk 0:00:03.9]} 42... Qd3# {[%clk
0:00:16.7]} 0-1

[Event "Early-Titled-Tuesday-Blitz-March-05-2024"]
[Site "Chess.com"]
[Date "2024.03.05"]
[Round "8"]
[White "kyuotbi"]
[Black "GilbertoHernandezAmura"]
[Result "0-1"]
[WhiteElo "2313"]
[BlackElo "2455"]
[TimeControl "180+1"]
[EndTime "9:30:22 PST"]
[Termination "GilbertoHernandezAmura won by checkmate"]

1. e4 {[%clk 0:02:59.2]} 1... d5 {[%clk 0:02:59.2]} 2. exd5 {[%clk 0:02:58.5]}
2... Nf6 {[%clk 0:02:59.7]} 3. d4 {[%clk 0:02:58.4]} 3... Nxd5 {[%clk
0:02:59.3]} 4. Nf3 {[%clk 0:02:55.3]} 4... g6 {[%clk 0:02:53.6]} 5. Be2 {[%clk
0:02:54.9]} 5... Bg7 {[%clk 0:02:53.9]} 6. O-O {[%clk 0:02:55.5]} 6... O-O
{[%clk 0:02:54.4]} 7. c3 {[%clk 0:02:51.4]} 7... b6 {[%clk 0:02:54.2]} 8. Nbd2
{[%clk 0:02:48.1]} 8... Bb7 {[%clk 0:02:54.3]} 9. Nc4 {[%clk 0:02:47.2]} 9...
Nd7 {[%clk 0:02:52]} 10. Bg5 {[%clk 0:02:42.7]} 10... h6 {[%clk 0:02:51.6]} 11.
Bh4 {[%clk 0:02:42.4]} 11... Nf4 {[%clk 0:02:51]} 12. Bg3 {[%clk 0:02:37]} 12...
Nxe2+ {[%clk 0:02:48]} 13. Qxe2 {[%clk 0:02:37.5]} 13... Re8 {[%clk 0:02:47.6]}
14. Nce5 {[%clk 0:02:36]} 14... Nxe5 {[%clk 0:02:46.4]} 15. Nxe5 {[%clk
0:02:36.5]} 15... e6 {[%clk 0:02:25.9]} 16. Rfe1 {[%clk 0:02:26.5]} 16... a5
{[%clk 0:02:24.6]} 17. Qg4 {[%clk 0:02:25.3]} 17... g5 {[%clk 0:01:58.7]} 18.
Qh5 {[%clk 0:02:20.1]} 18... Qe7 {[%clk 0:01:53.6]} 19. h4 {[%clk 0:02:14.5]}
19... f6 {[%clk 0:01:53.2]} 20. Ng4 {[%clk 0:02:10.6]} 20... f5 {[%clk
0:01:47.1]} 21. Nxh6+ {[%clk 0:02:10.2]} 21... Bxh6 {[%clk 0:01:39]} 22. Qxh6
{[%clk 0:02:09.7]} 22... gxh4 {[%clk 0:01:26.3]} 23. Be5 {[%clk 0:02:05.8]}
23... Qh7 {[%clk 0:01:20.9]} 24. Qg5+ {[%clk 0:02:04.2]} 24... Kf8 {[%clk
0:01:20.9]} 25. Re3 {[%clk 0:01:50.3]} 25... Re7 {[%clk 0:01:18.6]} 26. Rh3
{[%clk 0:01:49.5]} 26... Qg8 {[%clk 0:01:18.8]} 27. Qf6+ {[%clk 0:01:37.6]}
27... Rf7 {[%clk 0:01:17.6]} 28. Qh6+ {[%clk 0:01:36.3]} 28... Ke7 {[%clk
0:01:17.6]} 29. Qxh4+ {[%clk 0:01:34.7]} 29... Kd7 {[%clk 0:01:16.9]} 30. Rg3
{[%clk 0:01:33.3]} 30... Qf8 {[%clk 0:01:14.4]} 31. Rg6 {[%clk 0:01:24]} 31...
Re8 {[%clk 0:01:09.6]} 32. Rd1 {[%clk 0:01:22.1]} 32... b5 {[%clk 0:01:04.8]}
33. a4 {[%clk 0:01:15.1]} 33... bxa4 {[%clk 0:00:56.5]} 34. d5 {[%clk
0:01:13.7]} 34... exd5 {[%clk 0:00:53]} 35. Qxa4+ {[%clk 0:01:12.6]} 35... Kc8
{[%clk 0:00:50.8]} 36. Bg3 {[%clk 0:00:55.2]} 36... f4 {[%clk 0:00:37.1]} 37.
Bh4 {[%clk 0:00:40.9]} 37... f3 {[%clk 0:00:36.9]} 38. Qxa5 {[%clk 0:00:29.2]}
38... fxg2 {[%clk 0:00:34.2]} 39. Bg3 {[%clk 0:00:25.2]} 39... d4 {[%clk
0:00:26.1]} 40. Rf6 {[%clk 0:00:13.1]} 40... Ree7 {[%clk 0:00:21.1]} 41. Rxf7
{[%clk 0:00:10.5]} 41... Qxf7 {[%clk 0:00:22]} 42. Rxd4 {[%clk 0:00:10.1]} 42...
Re1+ {[%clk 0:00:20.6]} 43. Kh2 {[%clk 0:00:09.5]} 43... Rh1# {[%clk 0:00:20.1]}
0-1

[Event "Early-Titled-Tuesday-Blitz-March-05-2024"]
[Site "Chess.com"]
[Date "2024.03.05"]
[Round "8"]
[White "1mbl4"]
[Black "baki83"]
[Result "0-1"]
[WhiteElo "2615"]
[BlackElo "2803"]
[TimeControl "180+1"]
[EndTime "9:30:26 PST"]
[Termination "baki83 won by resignation"]

1. d4 {[%clk 0:03:00.9]} 1... d5 {[%clk 0:02:59.8]} 2. Bf4 {[%clk 0:03:00.9]}
2... Nf6 {[%clk 0:02:59.5]} 3. Nc3 {[%clk 0:03:01.1]} 3... a6 {[%clk 0:02:58.5]}
4. e3 {[%clk 0:03:01.1]} 4... b5 {[%clk 0:02:57.9]} 5. Nf3 {[%clk 0:02:55.7]}
5... Bb7 {[%clk 0:02:51.8]} 6. Ne5 {[%clk 0:02:55.5]} 6... e6 {[%clk 0:02:48.9]}
7. g4 {[%clk 0:02:55.6]} 7... Nfd7 {[%clk 0:02:46.7]} 8. h4 {[%clk 0:02:49.8]}
8... Nxe5 {[%clk 0:02:45.6]} 9. Bxe5 {[%clk 0:02:50.1]} 9... Nd7 {[%clk
0:02:45.8]} 10. Bg3 {[%clk 0:02:44.5]} 10... c5 {[%clk 0:02:45.8]} 11. Bg2
{[%clk 0:02:41.3]} 11... Rc8 {[%clk 0:02:42.9]} 12. O-O {[%clk 0:02:25.2]} 12...
Be7 {[%clk 0:02:42]} 13. h5 {[%clk 0:02:24.1]} 13... O-O {[%clk 0:02:39.3]} 14.
Ne2 {[%clk 0:02:13.1]} 14... a5 {[%clk 0:02:25.4]} 15. c3 {[%clk 0:02:09.2]}
15... b4 {[%clk 0:02:25.8]} 16. Rc1 {[%clk 0:01:57]} 16... Nb6 {[%clk
0:02:16.7]} 17. dxc5 {[%clk 0:01:53.2]} 17... Bxc5 {[%clk 0:02:15.6]} 18. cxb4
{[%clk 0:01:50.3]} 18... axb4 {[%clk 0:02:06.7]} 19. h6 {[%clk 0:01:41]} 19...
gxh6 {[%clk 0:02:05.5]} 20. Bf4 {[%clk 0:01:31.7]} 20... Qf6 {[%clk 0:01:56.3]}
21. Ng3 {[%clk 0:01:22.9]} 21... e5 {[%clk 0:01:46]} 22. Nh5 {[%clk 0:01:19.1]}
22... Qe6 {[%clk 0:01:46.1]} 23. Bh2 {[%clk 0:01:08.6]} 23... Nc4 {[%clk
0:01:41.9]} 24. Qf3 {[%clk 0:00:42.1]} 24... Nd2 {[%clk 0:01:33.5]} 25. Nf6+
{[%clk 0:00:41.6]} 25... Kh8 {[%clk 0:01:22.5]} 26. Qf5 {[%clk 0:00:41.2]} 26...
Qxf5 {[%clk 0:01:12.4]} 27. gxf5 {[%clk 0:00:42.1]} 27... Nxf1 {[%clk
0:00:55.5]} 28. Bxe5 {[%clk 0:00:40.8]} 28... Nxe3 {[%clk 0:00:55.1]} 29. Rxc5
{[%clk 0:00:28.7]} 29... Rxc5 {[%clk 0:00:53.2]} 30. fxe3 {[%clk 0:00:20]} 30...
d4 {[%clk 0:00:24.1]} 31. Bxd4 {[%clk 0:00:20]} 31... Rc1+ {[%clk 0:00:23.9]}
32. Kh2 {[%clk 0:00:20.6]} 32... Rc2 {[%clk 0:00:22.5]} 33. Nd5+ {[%clk
0:00:20.8]} 33... f6 {[%clk 0:00:21.8]} 34. e4 {[%clk 0:00:21.3]} 34... Bxd5
{[%clk 0:00:21.5]} 35. exd5 {[%clk 0:00:22.2]} 35... Kg7 {[%clk 0:00:19.8]} 36.
Kg3 {[%clk 0:00:20.3]} 36... Rxg2+ {[%clk 0:00:19.4]} 37. Kxg2 {[%clk
0:00:20.5]} 37... Rd8 {[%clk 0:00:20]} 38. Bc5 {[%clk 0:00:19.6]} 38... b3
{[%clk 0:00:18]} 39. axb3 {[%clk 0:00:20.5]} 39... Rxd5 {[%clk 0:00:17.9]} 40.
b4 {[%clk 0:00:17.5]} 40... Rxf5 {[%clk 0:00:17.7]} 41. Bd4 {[%clk 0:00:15.8]}
41... Rb5 {[%clk 0:00:17.1]} 42. Bc3 {[%clk 0:00:16.3]} 42... Kg6 {[%clk
0:00:16.5]} 43. Kf3 {[%clk 0:00:16.9]} 43... Kf5 {[%clk 0:00:16.9]} 44. Ke3
{[%clk 0:00:15.6]} 44... h5 {[%clk 0:00:15.5]} 45. Kd4 {[%clk 0:00:16.1]} 45...
h4 {[%clk 0:00:14.9]} 46. Be1 {[%clk 0:00:12.6]} 46... h3 {[%clk 0:00:13.5]} 0-1

[Event "Early-Titled-Tuesday-Blitz-March-05-2024"]
[Site "Chess.com"]
[Date "2024.03.05"]
[Round "8"]
[White "vovachesss"]
[Black "GlavkonVVS"]
[Result "1-0"]
[WhiteElo "2803"]
[BlackElo "2559"]
[TimeControl "180+1"]
[EndTime "9:30:30 PST"]
[Termination "vovachesss won by resignation"]

1. e4 {[%clk 0:03:00.9]} 1... Nf6 {[%clk 0:03:00.1]} 2. e5 {[%clk 0:03:00.9]}
2... Nd5 {[%clk 0:03:00.7]} 3. Nc3 {[%clk 0:03:01.8]} 3... Nb6 {[%clk
0:03:00.8]} 4. d4 {[%clk 0:03:00.5]} 4... d6 {[%clk 0:03:01.3]} 5. f4 {[%clk
0:03:00.8]} 5... g6 {[%clk 0:03:00.5]} 6. Nf3 {[%clk 0:03:01.2]} 6... Bg4 {[%clk
0:02:59.9]} 7. Be2 {[%clk 0:03:01.5]} 7... Bg7 {[%clk 0:03:00.2]} 8. O-O {[%clk
0:03:01.6]} 8... O-O {[%clk 0:03:00.3]} 9. h3 {[%clk 0:03:01.4]} 9... Bxf3
{[%clk 0:03:00.3]} 10. Bxf3 {[%clk 0:03:02.1]} 10... c6 {[%clk 0:02:55.1]} 11.
Qe2 {[%clk 0:02:54]} 11... N8d7 {[%clk 0:02:47.4]} 12. Be3 {[%clk 0:02:53.5]}
12... a5 {[%clk 0:02:43.6]} 13. Rad1 {[%clk 0:02:48.7]} 13... a4 {[%clk
0:02:39]} 14. a3 {[%clk 0:02:39.2]} 14... d5 {[%clk 0:02:38.7]} 15. g4 {[%clk
0:02:20.7]} 15... Nc4 {[%clk 0:02:34.6]} 16. Bc1 {[%clk 0:02:21]} 16... e6
{[%clk 0:02:35]} 17. f5 {[%clk 0:02:06.4]} 17... exf5 {[%clk 0:02:25]} 18. gxf5
{[%clk 0:02:07.3]} 18... Qh4 {[%clk 0:02:09.8]} 19. f6 {[%clk 0:01:16.9]} 19...
Bh6 {[%clk 0:02:06.1]} 20. Bg4 {[%clk 0:01:17.4]} 20... Bxc1 {[%clk 0:02:02.4]}
21. Rxc1 {[%clk 0:01:17.8]} 21... Rae8 {[%clk 0:01:33.4]} 22. Bxd7 {[%clk
0:01:14.2]} 22... Qxd4+ {[%clk 0:01:32.9]} 23. Qf2 {[%clk 0:01:11.4]} 23...
Qxf2+ {[%clk 0:01:32.3]} 24. Rxf2 {[%clk 0:01:07.5]} 24... Rxe5 {[%clk
0:01:32.8]} 25. b3 {[%clk 0:01:07.9]} 25... axb3 {[%clk 0:01:29.8]} 26. cxb3
{[%clk 0:01:08.8]} 26... Nb6 {[%clk 0:01:22.6]} 27. Bg4 {[%clk 0:01:07.6]} 27...
h5 {[%clk 0:01:20.7]} 28. Bf3 {[%clk 0:00:59.2]} 28... Re3 {[%clk 0:01:17.8]}
29. Kg2 {[%clk 0:00:43.9]} 29... Rfe8 {[%clk 0:01:17.7]} 30. a4 {[%clk 0:00:27]}
30... d4 {[%clk 0:01:12.1]} 31. a5 {[%clk 0:00:27.7]} 31... Nd7 {[%clk
0:01:11.3]} 32. Na4 {[%clk 0:00:27.8]} 32... Rxb3 {[%clk 0:01:07]} 33. Nc5
{[%clk 0:00:26.7]} 33... Nxc5 {[%clk 0:01:03.7]} 34. Rxc5 {[%clk 0:00:27.6]}
34... Rd8 {[%clk 0:00:52.8]} 35. a6 {[%clk 0:00:25.7]} 35... bxa6 {[%clk
0:00:53.1]} 36. Rxc6 {[%clk 0:00:26.4]} 36... d3 {[%clk 0:00:47.9]} 37. Rd2
{[%clk 0:00:24.3]} 37... a5 {[%clk 0:00:48.1]} 38. Ra6 {[%clk 0:00:22.4]} 38...
Rb5 {[%clk 0:00:47.7]} 39. Be4 {[%clk 0:00:21.1]} 39... Rd4 {[%clk 0:00:40.2]}
40. Kf3 {[%clk 0:00:17.9]} 40... Re5 {[%clk 0:00:38.1]} 41. Bxd3 {[%clk
0:00:07.9]} 41... h4 {[%clk 0:00:20.4]} 42. Ra8+ {[%clk 0:00:06.7]} 42... Kh7
{[%clk 0:00:19.5]} 43. Bxg6+ {[%clk 0:00:07.3]} 43... Kxg6 {[%clk 0:00:19.9]}
44. Rxd4 {[%clk 0:00:06.6]} 44... Rf5+ {[%clk 0:00:18.5]} 45. Rf4 {[%clk
0:00:06.5]} 45... Rxf4+ {[%clk 0:00:18]} 46. Kxf4 {[%clk 0:00:06.5]} 46... Kxf6
{[%clk 0:00:18.9]} 47. Rxa5 {[%clk 0:00:06.8]} 1-0

[Event "Early-Titled-Tuesday-Blitz-March-05-2024"]
[Site "Chess.com"]
[Date "2024.03.05"]
[Round "8"]
[White "Bauman_Guy"]
[Black "Kobalia"]
[Result "0-1"]
[WhiteElo "2913"]
[BlackElo "2814"]
[TimeControl "180+1"]
[EndTime "9:30:32 PST"]
[Termination "Kobalia won by resignation"]

1. e4 {[%clk 0:03:00.9]} 1... c5 {[%clk 0:02:59.5]} 2. Nf3 {[%clk 0:03:01]} 2...
e6 {[%clk 0:03:00]} 3. d4 {[%clk 0:03:01.3]} 3... cxd4 {[%clk 0:03:00.3]} 4.
Nxd4 {[%clk 0:03:02.2]} 4... Nc6 {[%clk 0:03:00.6]} 5. Nc3 {[%clk 0:03:02.5]}
5... a6 {[%clk 0:03:00.6]} 6. g3 {[%clk 0:03:02.4]} 6... d6 {[%clk 0:03:00.3]}
7. Bg2 {[%clk 0:03:02.6]} 7... Bd7 {[%clk 0:03:00.8]} 8. O-O {[%clk 0:03:02.9]}
8... Nf6 {[%clk 0:03:01.2]} 9. a4 {[%clk 0:03:03.5]} 9... Be7 {[%clk 0:03:01.1]}
10. Nxc6 {[%clk 0:03:03.5]} 10... Bxc6 {[%clk 0:03:01.2]} 11. a5 {[%clk
0:03:04.4]} 11... O-O {[%clk 0:03:00.8]} 12. Be3 {[%clk 0:03:04.5]} 12... Qc7
{[%clk 0:03:00.5]} 13. Re1 {[%clk 0:03:03.2]} 13... Rac8 {[%clk 0:03:00]} 14.
Bb6 {[%clk 0:03:03.3]} 14... Qb8 {[%clk 0:02:59.7]} 15. Na4 {[%clk 0:03:00.8]}
15... d5 {[%clk 0:02:50.6]} 16. e5 {[%clk 0:02:31.3]} 16... Nd7 {[%clk
0:02:49.8]} 17. Bd4 {[%clk 0:02:18.2]} 17... Bb4 {[%clk 0:02:47.4]} 18. c3
{[%clk 0:02:06.8]} 18... Bxa5 {[%clk 0:02:47.3]} 19. Nc5 {[%clk 0:02:07.5]}
19... Bc7 {[%clk 0:02:44.9]} 20. Nxd7 {[%clk 0:02:00.8]} 20... Bxd7 {[%clk
0:02:44.2]} 21. h4 {[%clk 0:02:01.7]} 21... Bd8 {[%clk 0:02:27.3]} 22. h5 {[%clk
0:01:59.8]} 22... h6 {[%clk 0:02:27.4]} 23. f4 {[%clk 0:01:53.7]} 23... Be7
{[%clk 0:02:26.7]} 24. g4 {[%clk 0:01:43.5]} 24... Bc5 {[%clk 0:02:24.7]} 25. g5
{[%clk 0:01:41.7]} 25... Bxd4+ {[%clk 0:02:24.7]} 26. cxd4 {[%clk 0:01:41.7]}
26... hxg5 {[%clk 0:02:06.1]} 27. fxg5 {[%clk 0:01:41]} 27... Bb5 {[%clk
0:02:05]} 28. Bh3 {[%clk 0:01:34.1]} 28... Qc7 {[%clk 0:02:02.5]} 29. g6 {[%clk
0:01:25.6]} 29... Qe7 {[%clk 0:02:01.3]} 30. Qg4 {[%clk 0:01:24.8]} 30... Rc6
{[%clk 0:01:52.4]} 31. Ra3 {[%clk 0:01:17.6]} 31... f5 {[%clk 0:01:46.4]} 32.
exf6 {[%clk 0:01:12.5]} 32... Qxf6 {[%clk 0:01:46.4]} 33. Kh1 {[%clk 0:01:03.5]}
33... Qf2 {[%clk 0:01:41.4]} 34. Qg3 {[%clk 0:00:59.6]} 34... Qxd4 {[%clk
0:01:20.7]} 35. Rae3 {[%clk 0:00:46]} 35... e5 {[%clk 0:00:58.6]} 36. Rxe5
{[%clk 0:00:41.9]} 36... Bd3 {[%clk 0:00:57.8]} 37. Bg2 {[%clk 0:00:27.3]} 37...
Be4 {[%clk 0:00:56.9]} 38. Bxe4 {[%clk 0:00:24.8]} 38... dxe4 {[%clk 0:00:57.8]}
39. R5xe4 {[%clk 0:00:18.4]} 39... Qxb2 {[%clk 0:00:57.1]} 40. Re8 {[%clk
0:00:17.1]} 40... Rc8 {[%clk 0:00:51.1]} 41. Rxc8 {[%clk 0:00:15.8]} 41... Rxc8
{[%clk 0:00:50.9]} 42. Qg4 {[%clk 0:00:14.4]} 42... Rf8 {[%clk 0:00:45.1]} 43.
Qe6+ {[%clk 0:00:12.1]} 43... Kh8 {[%clk 0:00:45.3]} 44. Qf7 {[%clk 0:00:10.9]}
44... Qb4 {[%clk 0:00:40]} 45. Re8 {[%clk 0:00:08.5]} 45... Qh4+ {[%clk
0:00:31.5]} 46. Kg2 {[%clk 0:00:08.8]} 46... Qg4+ {[%clk 0:00:24.9]} 47. Kf2
{[%clk 0:00:09.2]} 47... Qd4+ {[%clk 0:00:23.9]} 48. Kg2 {[%clk 0:00:08.2]}
48... Qd2+ {[%clk 0:00:23.1]} 49. Kh1 {[%clk 0:00:07.4]} 49... Qc1+ {[%clk
0:00:22.7]} 50. Kg2 {[%clk 0:00:07.4]} 50... Qc6+ {[%clk 0:00:22.3]} 0-1

[Event "Early-Titled-Tuesday-Blitz-March-05-2024"]
[Site "Chess.com"]
[Date "2024.03.05"]
[Round "8"]
[White "subham777"]
[Black "Leonid_Starozhilov"]
[Result "1-0"]
[WhiteElo "2563"]
[BlackElo "2688"]
[TimeControl "180+1"]
[EndTime "9:30:32 PST"]
[Termination "subham777 won by resignation"]

1. e4 {[%clk 0:03:00.9]} 1... g6 {[%clk 0:03:00.2]} 2. g3 {[%clk 0:03:00.4]}
2... Bg7 {[%clk 0:03:01.1]} 3. Bg2 {[%clk 0:03:01]} 3... c5 {[%clk 0:03:01.8]}
4. Ne2 {[%clk 0:03:01.4]} 4... Nc6 {[%clk 0:03:02.6]} 5. O-O {[%clk 0:03:01.9]}
5... e5 {[%clk 0:03:03.2]} 6. d3 {[%clk 0:02:57.8]} 6... Nge7 {[%clk 0:03:03.8]}
7. c4 {[%clk 0:02:58]} 7... h5 {[%clk 0:02:51.8]} 8. h4 {[%clk 0:02:57]} 8... d6
{[%clk 0:02:52.5]} 9. Nbc3 {[%clk 0:02:55.9]} 9... Bg4 {[%clk 0:02:51.8]} 10. f3
{[%clk 0:02:53.3]} 10... Be6 {[%clk 0:02:51.5]} 11. Be3 {[%clk 0:02:52.3]} 11...
Nd4 {[%clk 0:02:51.1]} 12. Bxd4 {[%clk 0:02:52.1]} 12... cxd4 {[%clk 0:02:50.6]}
13. Nd5 {[%clk 0:02:52.1]} 13... O-O {[%clk 0:02:45.1]} 14. b4 {[%clk
0:02:43.9]} 14... Nxd5 {[%clk 0:02:28.9]} 15. cxd5 {[%clk 0:02:40.1]} 15... Bd7
{[%clk 0:02:29.8]} 16. Qb3 {[%clk 0:02:32.4]} 16... Bh6 {[%clk 0:02:26.8]} 17.
f4 {[%clk 0:02:26.5]} 17... Bg4 {[%clk 0:02:19.5]} 18. Bf3 {[%clk 0:02:26.1]}
18... exf4 {[%clk 0:02:15.5]} 19. Bxg4 {[%clk 0:02:10.1]} 19... hxg4 {[%clk
0:02:14.8]} 20. Nxf4 {[%clk 0:02:09.3]} 20... Rc8 {[%clk 0:02:15.5]} 21. Qd1
{[%clk 0:01:59]} 21... Qd7 {[%clk 0:02:10.6]} 22. Kg2 {[%clk 0:01:39.4]} 22...
Rc3 {[%clk 0:02:08.9]} 23. Ne6 {[%clk 0:01:22.5]} 23... fxe6 {[%clk 0:01:59.4]}
24. Qxg4 {[%clk 0:01:22]} 24... Rc2+ {[%clk 0:01:55.1]} 25. Kh1 {[%clk
0:01:04.8]} 25... Kh7 {[%clk 0:01:23.6]} 26. Rxf8 {[%clk 0:00:59.8]} 26... Bxf8
{[%clk 0:01:23.6]} 27. Rf1 {[%clk 0:00:59.8]} 27... Bg7 {[%clk 0:01:10.9]} 28.
dxe6 {[%clk 0:00:49.8]} 28... Qb5 {[%clk 0:01:01.3]} 29. e7 {[%clk 0:00:21]}
29... Rc7 {[%clk 0:00:45.9]} 30. Qe6 {[%clk 0:00:11.1]} 30... Qe8 {[%clk
0:00:33]} 31. Rf7 {[%clk 0:00:08.9]} 31... Rc1+ {[%clk 0:00:28.9]} 32. Kh2
{[%clk 0:00:08.5]} 32... Rc2+ {[%clk 0:00:28.4]} 33. Kh1 {[%clk 0:00:07.8]}
33... Rc1+ {[%clk 0:00:13.6]} 34. Kh2 {[%clk 0:00:05.7]} 34... Qc8 {[%clk
0:00:09.8]} 35. e8=Q {[%clk 0:00:02.7]} 35... Qc2+ {[%clk 0:00:07.7]} 36. Kh3
{[%clk 0:00:03.2]} 36... Rh1+ {[%clk 0:00:07.8]} 37. Kg4 {[%clk 0:00:03.7]}
37... Qe2+ {[%clk 0:00:05.2]} 38. Rf3 {[%clk 0:00:04.2]} 38... Rxh4+ {[%clk
0:00:04.5]} 39. Kxh4 {[%clk 0:00:03.6]} 39... Qh2+ {[%clk 0:00:04.4]} 40. Qh3
{[%clk 0:00:04.2]} 40... g5+ {[%clk 0:00:03.9]} 41. Kg4+ {[%clk 0:00:04]} 41...
Qxh3+ {[%clk 0:00:04.3]} 42. Kxh3 {[%clk 0:00:04.1]} 42... Bf6 {[%clk
0:00:05.2]} 43. Kg4 {[%clk 0:00:04.6]} 1-0

[Event "Early-Titled-Tuesday-Blitz-March-05-2024"]
[Site "Chess.com"]
[Date "2024.03.05"]
[Round "8"]
[White "moro182"]
[Black "MITerryble"]
[Result "1-0"]
[WhiteElo "2846"]
[BlackElo "3014"]
[TimeControl "180+1"]
[EndTime "9:30:39 PST"]
[Termination "moro182 won by resignation"]

1. d4 {[%clk 0:03:00.9]} 1... d5 {[%clk 0:02:58.9]} 2. Bf4 {[%clk 0:03:00.2]}
2... Nf6 {[%clk 0:02:57]} 3. e3 {[%clk 0:03:00.6]} 3... e6 {[%clk 0:02:57.5]} 4.
Nf3 {[%clk 0:03:00.4]} 4... Bd6 {[%clk 0:02:58.4]} 5. Nbd2 {[%clk 0:03:00.7]}
5... O-O {[%clk 0:02:56]} 6. Bd3 {[%clk 0:03:00.3]} 6... c5 {[%clk 0:02:53.4]}
7. dxc5 {[%clk 0:03:00]} 7... Bxc5 {[%clk 0:02:50.4]} 8. O-O {[%clk 0:02:59.6]}
8... h6 {[%clk 0:02:46.3]} 9. h3 {[%clk 0:02:54.7]} 9... Nc6 {[%clk 0:02:40.4]}
10. c3 {[%clk 0:02:53.5]} 10... Re8 {[%clk 0:02:21]} 11. e4 {[%clk 0:02:46.2]}
11... e5 {[%clk 0:02:20.6]} 12. Bg3 {[%clk 0:02:33.5]} 12... Bb6 {[%clk
0:01:15.6]} 13. Re1 {[%clk 0:01:57.3]} 13... d4 {[%clk 0:01:12.7]} 14. Bb5
{[%clk 0:01:42.9]} 14... dxc3 {[%clk 0:01:11.8]} 15. bxc3 {[%clk 0:01:42.4]}
15... Nh5 {[%clk 0:00:37.7]} 16. Bxc6 {[%clk 0:01:14.5]} 16... bxc6 {[%clk
0:00:38.6]} 17. Bxe5 {[%clk 0:01:14.8]} 17... Ba6 {[%clk 0:00:39.3]} 18. Nb3
{[%clk 0:01:10.2]} 18... Qe7 {[%clk 0:00:34.3]} 19. Qd6 {[%clk 0:01:03.5]} 19...
Qxd6 {[%clk 0:00:33.4]} 20. Bxd6 {[%clk 0:01:04.4]} 20... Nf6 {[%clk 0:00:34.2]}
21. e5 {[%clk 0:01:00.7]} 21... Nd5 {[%clk 0:00:34.6]} 22. Rac1 {[%clk
0:01:00.9]} 22... Nf4 {[%clk 0:00:34.3]} 23. Rc2 {[%clk 0:00:47.7]} 23... Rad8
{[%clk 0:00:32]} 24. Rd1 {[%clk 0:00:42.3]} 24... Be2 {[%clk 0:00:30]} 25. Rdd2
{[%clk 0:00:41.4]} 25... Bxf3 {[%clk 0:00:28.8]} 26. gxf3 {[%clk 0:00:42.3]}
26... Nxh3+ {[%clk 0:00:29.4]} 27. Kh2 {[%clk 0:00:40.8]} 27... Nf4 {[%clk
0:00:28.9]} 28. c4 {[%clk 0:00:40.4]} 28... Rc8 {[%clk 0:00:22.8]} 29. c5 {[%clk
0:00:39.6]} 29... Bd8 {[%clk 0:00:23.1]} 30. Rd4 {[%clk 0:00:36.3]} 30... Ne6
{[%clk 0:00:18.8]} 31. Ra4 {[%clk 0:00:36.3]} 31... Ra8 {[%clk 0:00:17.3]} 32.
Ra6 {[%clk 0:00:35.4]} 32... Rc8 {[%clk 0:00:11.9]} 33. Rxa7 {[%clk 0:00:35]}
33... Bg5 {[%clk 0:00:12.8]} 34. a4 {[%clk 0:00:32.5]} 34... Bf4+ {[%clk
0:00:12.6]} 35. Kg2 {[%clk 0:00:31.9]} 35... h5 {[%clk 0:00:06.1]} 36. a5 {[%clk
0:00:32.1]} 36... Kh7 {[%clk 0:00:06.1]} 37. Rxf7 {[%clk 0:00:29.1]} 37... Kg6
{[%clk 0:00:06.4]} 38. Re7 {[%clk 0:00:27.9]} 38... h4 {[%clk 0:00:05.7]} 39.
Rxe8 {[%clk 0:00:27.7]} 39... Rxe8 {[%clk 0:00:06.6]} 40. a6 {[%clk 0:00:28.3]}
40... Ng5 {[%clk 0:00:03.2]} 41. a7 {[%clk 0:00:26.2]} 41... Ra8 {[%clk
0:00:03.4]} 42. Bb8 {[%clk 0:00:25.2]} 42... h3+ {[%clk 0:00:04.3]} 43. Kh1
{[%clk 0:00:24.8]} 43... Nxf3 {[%clk 0:00:05.2]} 44. Re2 {[%clk 0:00:20.8]}
44... Kf5 {[%clk 0:00:02.5]} 45. e6 {[%clk 0:00:21.1]} 45... Bxb8 {[%clk
0:00:03.1]} 46. e7 {[%clk 0:00:21.7]} 46... Bxa7 {[%clk 0:00:03.7]} 47. e8=Q
{[%clk 0:00:21.8]} 47... Rxe8 {[%clk 0:00:04.1]} 48. Rxe8 {[%clk 0:00:22.4]}
48... Ng5 {[%clk 0:00:02.3]} 49. Ra8 {[%clk 0:00:22]} 49... Ne4 {[%clk
0:00:02.4]} 50. Rxa7 {[%clk 0:00:22]} 50... Nxf2+ {[%clk 0:00:03]} 51. Kh2
{[%clk 0:00:22.6]} 51... g5 {[%clk 0:00:03.1]} 52. Rf7+ {[%clk 0:00:22.8]} 1-0